[Event "Titled Tuesday Blitz August 17 2021"]
[White "Kavyev, Ruslan"]
[Black "Mitusov, Semen"]
[WhiteFideId "34110981"]
[BlackFideId "14151049"]
[WhiteElo "2172"]
[BlackElo "2256"]
[Result "1/2-1/2"]
[Round "08"]
[TimeControl "180+1"]
[Date "2021.08.17"]
[WhiteClock "0:00:33"]
[BlackClock "0:00:24"]

1. e4 {[%clk 0:02:59]}  e5 {[%clk 0:02:59]} 2. Nf3 {[%clk 0:02:58]}  Nc6 {[%clk 0:02:59]} 3. Bb5 {[%clk 0:02:58]}  a6 {[%clk 0:03:00]} 4. Ba4 {[%clk 0:02:58]}  Nf6 {[%clk 0:03:00]} 5. O-O {[%clk 0:02:58]}  b5 {[%clk 0:03:00]} 6. Bb3 {[%clk 0:02:59]}  Be7 {[%clk 0:03:01]} 7. d3 {[%clk 0:02:59]}  O-O {[%clk 0:02:59]} 8. Nc3 {[%clk 0:03:00]}  d6 {[%clk 0:02:59]} 9. a3 {[%clk 0:03:00]}  h6 {[%clk 0:02:56]} 10. h3 {[%clk 0:03:00]}  Na5 {[%clk 0:02:56]} 11. Ba2 {[%clk 0:03:00]}  c5 {[%clk 0:02:57]} 12. Bd2 {[%clk 0:02:55]}  Nc6 {[%clk 0:02:56]} 13. Nd5 {[%clk 0:02:54]}  Be6 {[%clk 0:02:56]} 14. Nxf6+ {[%clk 0:02:44]}  Bxf6 {[%clk 0:02:55]} 15. c3 {[%clk 0:02:41]}  Bxa2 {[%clk 0:02:54]} 16. Rxa2 {[%clk 0:02:41]}  d5 {[%clk 0:02:52]} 17. Qe2 {[%clk 0:02:40]}  Re8 {[%clk 0:02:48]} 18. b4 {[%clk 0:02:25]}  c4 {[%clk 0:02:41]} 19. dxc4 {[%clk 0:02:23]}  dxc4 {[%clk 0:02:35]} 20. Be3 {[%clk 0:02:17]}  Qc7 {[%clk 0:02:26]} 21. a4 {[%clk 0:02:17]}  Red8 {[%clk 0:02:21]} 22. Rfa1 {[%clk 0:02:16]}  Rab8 {[%clk 0:02:20]} 23. axb5 {[%clk 0:02:16]}  axb5 {[%clk 0:02:19]} 24. Ra6 {[%clk 0:01:46]}  Rd3 {[%clk 0:02:15]} 25. Qc2 {[%clk 0:01:45]}  Qd7 {[%clk 0:02:08]} 26. Ra8 {[%clk 0:01:35]}  Rxa8 {[%clk 0:02:08]} 27. Rxa8+ {[%clk 0:01:36]}  Kh7 {[%clk 0:02:08]} 28. Nd2 {[%clk 0:01:24]}  Qe7 {[%clk 0:01:50]} 29. Nb3 {[%clk 0:01:14]}  Nxb4 {[%clk 0:01:46]} 30. cxb4 {[%clk 0:01:14]}  Rxb3 {[%clk 0:01:45]} 31. Bc5 {[%clk 0:01:13]}  Qd7 {[%clk 0:01:42]} 32. Rb8 {[%clk 0:01:09]}  Qd3 {[%clk 0:01:33]} 33. Qa2 {[%clk 0:01:06]}  Qb1+ {[%clk 0:01:18]} 34. Qxb1 {[%clk 0:01:06]}  Rxb1+ {[%clk 0:01:19]} 35. Kh2 {[%clk 0:01:07]}  c3 {[%clk 0:01:20]} 36. Rc8 {[%clk 0:00:56]}  c2 {[%clk 0:01:00]} 37. Be3 {[%clk 0:00:54]}  Rxb4 {[%clk 0:00:57]} 38. Rxc2 {[%clk 0:00:53]}  Rxe4 {[%clk 0:00:58]} 39. Rc7 {[%clk 0:00:52]}  Kg6 {[%clk 0:00:57]} 40. Rb7 {[%clk 0:00:52]}  b4 {[%clk 0:00:53]} 41. Bc5 {[%clk 0:00:53]}  Rc4 {[%clk 0:00:49]} 42. Bxb4 {[%clk 0:00:52]}  Rc2 {[%clk 0:00:50]} 43. f3 {[%clk 0:00:50]}  Rb2 {[%clk 0:00:49]} 44. Rb6 {[%clk 0:00:49]}  Kh7 {[%clk 0:00:48]} 45. Bc5 {[%clk 0:00:49]}  Rxb6 {[%clk 0:00:48]} 46. Bxb6 {[%clk 0:00:50]}  Be7 {[%clk 0:00:48]} 47. Kg3 {[%clk 0:00:50]}  f5 {[%clk 0:00:47]} 48. Kf2 {[%clk 0:00:51]}  Kg6 {[%clk 0:00:47]} 49. g4 {[%clk 0:00:52]}  Kf6 {[%clk 0:00:44]} 50. Bc7 {[%clk 0:00:48]}  Bc5+ {[%clk 0:00:44]} 51. Kg3 {[%clk 0:00:48]}  g6 {[%clk 0:00:42]} 52. Bb8 {[%clk 0:00:46]}  h5 {[%clk 0:00:39]} 53. Bc7 {[%clk 0:00:44]}  f4+ {[%clk 0:00:34]} 54. Kg2 {[%clk 0:00:43]}  Bd4 {[%clk 0:00:31]} 55. Kf1 {[%clk 0:00:41]}  Ke6 {[%clk 0:00:30]} 56. Ke2 {[%clk 0:00:42]}  Kd5 {[%clk 0:00:30]} 57. Kd3 {[%clk 0:00:42]}  Kc5 {[%clk 0:00:28]} 58. Ke4 {[%clk 0:00:41]}  hxg4 {[%clk 0:00:20]} 59. hxg4 {[%clk 0:00:41]}  Kc4 {[%clk 0:00:18]} 60. Bxe5 {[%clk 0:00:41]}  Bxe5 {[%clk 0:00:18]} 61. Kxe5 {[%clk 0:00:42]}  g5 {[%clk 0:00:19]} 62. Kf5 {[%clk 0:00:42]}  Kd3 {[%clk 0:00:19]} 63. Kxg5 {[%clk 0:00:43]}  Ke3 {[%clk 0:00:20]} 64. Kh4 {[%clk 0:00:29]}  Kxf3 {[%clk 0:00:20]} 65. g5 {[%clk 0:00:30]}  Ke2 {[%clk 0:00:20]} 66. g6 {[%clk 0:00:30]}  f3 {[%clk 0:00:21]} 67. g7 {[%clk 0:00:31]}  f2 {[%clk 0:00:21]} 68. g8=Q {[%clk 0:00:32]}  f1=Q {[%clk 0:00:22]} 69. Qc4+ {[%clk 0:00:32]}  Kf2 {[%clk 0:00:23]} 70. Qxf1+ {[%clk 0:00:33]}  Kxf1 {[%clk 0:00:24]} 1/2-1/2


[Site "https://www.chess.com"]

[Event "Titled Tuesday Blitz August 17 2021"]
[White "Kezin, Roman"]
[Black "Sarana, Alexey"]
[WhiteFideId "24124621"]
[BlackFideId "24133795"]
[WhiteElo "2570"]
[BlackElo "2646"]
[Result "0-1"]
[Round "08"]
[TimeControl "180+1"]
[Date "2021.08.17"]
[WhiteClock "0:00:07"]
[BlackClock "0:00:38"]

1. d4 {[%clk 0:02:59]}  Nf6 {[%clk 0:02:47]} 2. c4 {[%clk 0:02:59]}  e6 {[%clk 0:02:47]} 3. Nf3 {[%clk 0:02:59]}  d5 {[%clk 0:02:48]} 4. g3 {[%clk 0:03:00]}  Be7 {[%clk 0:02:46]} 5. Bg2 {[%clk 0:03:00]}  O-O {[%clk 0:02:47]} 6. O-O {[%clk 0:03:01]}  c6 {[%clk 0:02:47]} 7. Qc2 {[%clk 0:03:00]}  Nbd7 {[%clk 0:02:47]} 8. Nbd2 {[%clk 0:02:59]}  b6 {[%clk 0:02:42]} 9. e4 {[%clk 0:02:59]}  dxc4 {[%clk 0:02:41]} 10. Nxc4 {[%clk 0:03:00]}  Bb7 {[%clk 0:02:40]} 11. Bf4 {[%clk 0:02:49]}  c5 {[%clk 0:02:39]} 12. Rfe1 {[%clk 0:02:38]}  Rc8 {[%clk 0:02:32]} 13. Nd6 {[%clk 0:02:31]}  Bxd6 {[%clk 0:02:31]} 14. Bxd6 {[%clk 0:02:32]}  Re8 {[%clk 0:02:32]} 15. e5 {[%clk 0:02:18]}  cxd4 {[%clk 0:02:29]} 16. Qd3 {[%clk 0:02:07]}  Nd5 {[%clk 0:02:15]} 17. Qxd4 {[%clk 0:02:04]}  Nc5 {[%clk 0:02:06]} 18. Rac1 {[%clk 0:02:00]}  Qd7 {[%clk 0:02:00]} 19. Bxc5 {[%clk 0:01:44]}  bxc5 {[%clk 0:01:57]} 20. Rxc5 {[%clk 0:01:45]}  Rxc5 {[%clk 0:01:56]} 21. Qxc5 {[%clk 0:01:46]}  a6 {[%clk 0:01:56]} 22. Nd4 {[%clk 0:01:14]}  Rc8 {[%clk 0:01:55]} 23. Qa3 {[%clk 0:01:06]}  h6 {[%clk 0:01:46]} 24. h4 {[%clk 0:00:56]}  Rc4 {[%clk 0:01:45]} 25. Nb3 {[%clk 0:00:52]}  Qb5 {[%clk 0:01:22]} 26. Qd6 {[%clk 0:00:45]}  Rc8 {[%clk 0:01:15]} 27. Be4 {[%clk 0:00:28]}  Qa4 {[%clk 0:01:10]} 28. Rc1 {[%clk 0:00:18]}  Rxc1+ {[%clk 0:00:58]} 29. Nxc1 {[%clk 0:00:19]}  Qxe4 {[%clk 0:00:57]} 30. Qb8+ {[%clk 0:00:19]}  Kh7 {[%clk 0:00:57]} 31. Qxb7 {[%clk 0:00:20]}  Qe1+ {[%clk 0:00:57]} 32. Kg2 {[%clk 0:00:20]}  Qxc1 {[%clk 0:00:57]} 33. Qxf7 {[%clk 0:00:21]}  Qc6 {[%clk 0:00:55]} 34. Kh2 {[%clk 0:00:20]}  Qc2 {[%clk 0:00:55]} 35. h5 {[%clk 0:00:18]}  Qf5 {[%clk 0:00:50]} 36. Qxf5+ {[%clk 0:00:17]}  exf5 {[%clk 0:00:51]} 37. Kg2 {[%clk 0:00:17]}  Kg8 {[%clk 0:00:52]} 38. f4 {[%clk 0:00:16]}  Kf7 {[%clk 0:00:51]} 39. Kf3 {[%clk 0:00:16]}  Ke6 {[%clk 0:00:52]} 40. Ke2 {[%clk 0:00:12]}  Nb4 {[%clk 0:00:41]} 41. a3 {[%clk 0:00:12]}  Nc6 {[%clk 0:00:42]} 42. Kd3 {[%clk 0:00:13]}  Kd5 {[%clk 0:00:42]} 43. b4 {[%clk 0:00:12]}  Nd4 {[%clk 0:00:38]} 44. a4 {[%clk 0:00:12]}  Ne6 {[%clk 0:00:38]} 45. Kc3 {[%clk 0:00:09]}  Nd8 {[%clk 0:00:38]} 46. Kd3 {[%clk 0:00:05]}  Nc6 {[%clk 0:00:39]} 47. Kc3 {[%clk 0:00:06]}  Na7 {[%clk 0:00:38]} 48. Kd3 {[%clk 0:00:06]}  Nc8 {[%clk 0:00:38]} 49. Kc3 {[%clk 0:00:04]}  Nb6 {[%clk 0:00:38]} 50. Kb3 {[%clk 0:00:03]}  Nc4 {[%clk 0:00:36]} 51. Kc3 {[%clk 0:00:01]}  Ne3 {[%clk 0:00:36]} 52. b5 {[%clk 0:00:01]}  axb5 {[%clk 0:00:36]} 53. axb5 {[%clk 0:00:02]}  Kc5 {[%clk 0:00:37]} 54. e6 {[%clk 0:00:02]}  Nd5+ {[%clk 0:00:37]} 55. Kd3 {[%clk 0:00:03]}  Ne7 {[%clk 0:00:35]} 56. Kc3 {[%clk 0:00:03]}  Kxb5 {[%clk 0:00:35]} 57. Kd4 {[%clk 0:00:04]}  Kc6 {[%clk 0:00:35]} 58. Ke5 {[%clk 0:00:05]}  Kc5 {[%clk 0:00:35]} 59. g4 {[%clk 0:00:05]}  fxg4 {[%clk 0:00:36]} 60. f5 {[%clk 0:00:06]}  g3 {[%clk 0:00:36]} 61. f6 {[%clk 0:00:06]}  gxf6+ {[%clk 0:00:37]} 62. Kxf6 {[%clk 0:00:07]}  Kd6 {[%clk 0:00:38]} 0-1


[Site "https://www.chess.com"]

[Event "Titled Tuesday Blitz August 17 2021"]
[White "Khanin, Semen"]
[Black "Espinosa Veloz, Ermes"]
[WhiteFideId "4111990"]
[BlackFideId "3507424"]
[WhiteElo "2521"]
[BlackElo "2333"]
[Result "1-0"]
[Round "08"]
[TimeControl "180+1"]
[Date "2021.08.17"]
[WhiteClock "0:02:50"]
[BlackClock "0:00:56"]

1. e4 {[%clk 0:03:00]}  e6 {[%clk 0:02:59]} 2. d4 {[%clk 0:03:00]}  d5 {[%clk 0:02:58]} 3. e5 {[%clk 0:03:01]}  c5 {[%clk 0:02:57]} 4. c3 {[%clk 0:03:01]}  Nc6 {[%clk 0:02:57]} 5. Nf3 {[%clk 0:03:02]}  Qb6 {[%clk 0:02:57]} 6. Na3 {[%clk 0:03:02]}  Nh6 {[%clk 0:02:53]} 7. Nc2 {[%clk 0:03:01]}  Nf5 {[%clk 0:02:50]} 8. Bd3 {[%clk 0:03:02]}  cxd4 {[%clk 0:02:45]} 9. cxd4 {[%clk 0:03:02]}  Be7 {[%clk 0:02:41]} 10. O-O {[%clk 0:03:00]}  O-O {[%clk 0:02:41]} 11. g4 {[%clk 0:02:59]}  Nh4 {[%clk 0:02:38]} 12. Nxh4 {[%clk 0:02:59]}  Bxh4 {[%clk 0:02:37]} 13. g5 {[%clk 0:02:59]}  h6 {[%clk 0:02:16]} 14. Qh5 {[%clk 0:02:59]}  Bxg5 {[%clk 0:02:11]} 15. Bxg5 {[%clk 0:02:58]}  Re8 {[%clk 0:01:18]} 16. Bxh6 {[%clk 0:02:53]}  gxh6 {[%clk 0:01:16]} 17. Qxh6 {[%clk 0:02:53]}  f5 {[%clk 0:00:56]} 18. exf6 {[%clk 0:02:52]}  Qd8 {[%clk 0:00:56]} 19. Qg7# {[%clk 0:02:50]} 1-0


[Site "https://www.chess.com"]

[Event "Titled Tuesday Blitz August 17 2021"]
[White "Koellner, Ruben Gideon"]
[Black "Rodriguez Hernandez, Luis Daniel"]
[WhiteFideId "12993093"]
[BlackFideId "3506770"]
[WhiteElo "2536"]
[BlackElo "2133"]
[Result "1/2-1/2"]
[Round "08"]
[TimeControl "180+1"]
[Date "2021.08.17"]
[WhiteClock "0:01:56"]
[BlackClock "0:00:44"]

1. d4 {[%clk 0:03:00]}  Nf6 {[%clk 0:02:59]} 2. Bg5 {[%clk 0:03:00]}  e6 {[%clk 0:03:00]} 3. Nd2 {[%clk 0:03:00]}  h6 {[%clk 0:03:00]} 4. Bh4 {[%clk 0:03:00]}  c5 {[%clk 0:02:51]} 5. e4 {[%clk 0:02:59]}  cxd4 {[%clk 0:02:27]} 6. e5 {[%clk 0:02:59]}  g5 {[%clk 0:02:28]} 7. Bg3 {[%clk 0:02:59]}  Nd5 {[%clk 0:02:20]} 8. h4 {[%clk 0:02:59]}  g4 {[%clk 0:02:06]} 9. Qxg4 {[%clk 0:02:46]}  Qb6 {[%clk 0:01:58]} 10. O-O-O {[%clk 0:02:35]}  Nc3 {[%clk 0:01:52]} 11. Nc4 {[%clk 0:01:56]}  Nxa2+ {[%clk 0:01:50]} 12. Kb1 {[%clk 0:01:56]}  Nc3+ {[%clk 0:01:50]} 13. Kc1 {[%clk 0:01:57]}  Na2+ {[%clk 0:00:49]} 14. Kb1 {[%clk 0:01:56]}  Nc3+ {[%clk 0:00:49]} 15. Kc1 {[%clk 0:01:56]}  Na2+ {[%clk 0:00:44]} 1/2-1/2


[Site "https://www.chess.com"]

[Event "Titled Tuesday Blitz August 17 2021"]
[White "Korchmar, Vasiliy"]
[Black "Khabinets, Ivan"]
[WhiteFideId "24131750"]
[BlackFideId "14115980"]
[WhiteElo "2370"]
[BlackElo "2114"]
[Result "1-0"]
[Round "08"]
[TimeControl "180+1"]
[Date "2021.08.17"]
[WhiteClock "0:02:20"]
[BlackClock "0:00:59"]

1. e4 {[%clk 0:03:00]}  c5 {[%clk 0:02:59]} 2. Nf3 {[%clk 0:03:01]}  d6 {[%clk 0:02:59]} 3. d4 {[%clk 0:03:01]}  cxd4 {[%clk 0:03:00]} 4. Nxd4 {[%clk 0:03:01]}  Nf6 {[%clk 0:03:00]} 5. Nc3 {[%clk 0:03:02]}  a6 {[%clk 0:03:01]} 6. Be2 {[%clk 0:03:02]}  e5 {[%clk 0:03:01]} 7. Nb3 {[%clk 0:03:03]}  Be7 {[%clk 0:03:01]} 8. O-O {[%clk 0:03:03]}  O-O {[%clk 0:03:01]} 9. Qd3 {[%clk 0:03:04]}  Nc6 {[%clk 0:02:58]} 10. Bd2 {[%clk 0:03:03]}  Be6 {[%clk 0:02:57]} 11. Nd5 {[%clk 0:03:02]}  Rc8 {[%clk 0:02:50]} 12. a4 {[%clk 0:02:57]}  h6 {[%clk 0:02:49]} 13. a5 {[%clk 0:02:54]}  Bxd5 {[%clk 0:02:35]} 14. exd5 {[%clk 0:02:55]}  Nb8 {[%clk 0:02:35]} 15. c4 {[%clk 0:02:52]}  Nbd7 {[%clk 0:02:35]} 16. f4 {[%clk 0:02:47]}  Qc7 {[%clk 0:02:23]} 17. Kh1 {[%clk 0:02:44]}  Rfe8 {[%clk 0:02:16]} 18. Bc3 {[%clk 0:02:37]}  exf4 {[%clk 0:01:37]} 19. Rxf4 {[%clk 0:02:38]}  Nc5 {[%clk 0:01:37]} 20. Nxc5 {[%clk 0:02:37]}  dxc5 {[%clk 0:01:38]} 21. Raf1 {[%clk 0:02:37]}  Qd6 {[%clk 0:01:27]} 22. Bd1 {[%clk 0:02:37]}  Rf8 {[%clk 0:01:26]} 23. Bc2 {[%clk 0:02:37]}  Rfe8 {[%clk 0:01:16]} 24. g4 {[%clk 0:02:21]}  Qd7 {[%clk 0:01:03]} 25. h4 {[%clk 0:02:21]}  Bd6 {[%clk 0:01:00]} 26. Rxf6 {[%clk 0:02:19]}  gxf6 {[%clk 0:00:58]} 27. Qh7+ {[%clk 0:02:19]}  Kf8 {[%clk 0:00:58]} 28. Qh8+ {[%clk 0:02:19]}  Ke7 {[%clk 0:00:59]} 29. Bxf6# {[%clk 0:02:20]} 1-0


[Site "https://www.chess.com"]

[Event "Titled Tuesday Blitz August 17 2021"]
[White "Laurusas, Tomas"]
[Black "Vlassov, Nikolai"]
[WhiteFideId "12803731"]
[BlackFideId "4103360"]
[WhiteElo "2542"]
[BlackElo "2407"]
[Result "1-0"]
[Round "08"]
[TimeControl "180+1"]
[Date "2021.08.17"]
[WhiteClock "0:01:42"]
[BlackClock "0:00:04"]

1. Nf3 {[%clk 0:03:00]}  Nf6 {[%clk 0:02:59]} 2. d3 {[%clk 0:02:56]}  Nc6 {[%clk 0:02:55]} 3. e4 {[%clk 0:02:55]}  e5 {[%clk 0:02:55]} 4. Nbd2 {[%clk 0:02:55]}  Bc5 {[%clk 0:02:55]} 5. Be2 {[%clk 0:02:55]}  O-O {[%clk 0:02:54]} 6. O-O {[%clk 0:02:56]}  d5 {[%clk 0:02:54]} 7. c3 {[%clk 0:02:54]}  a5 {[%clk 0:02:53]} 8. Re1 {[%clk 0:02:55]}  h6 {[%clk 0:02:52]} 9. a4 {[%clk 0:02:54]}  Be6 {[%clk 0:02:47]} 10. h3 {[%clk 0:02:52]}  Re8 {[%clk 0:02:43]} 11. Bf1 {[%clk 0:02:52]}  Qd7 {[%clk 0:02:33]} 12. Qc2 {[%clk 0:02:39]}  Rad8 {[%clk 0:02:32]} 13. exd5 {[%clk 0:02:25]}  Qxd5 {[%clk 0:02:27]} 14. Ne4 {[%clk 0:02:23]}  Nxe4 {[%clk 0:02:24]} 15. dxe4 {[%clk 0:02:24]}  Qb3 {[%clk 0:02:24]} 16. Qe2 {[%clk 0:02:22]}  Bb6 {[%clk 0:02:12]} 17. Nd2 {[%clk 0:02:20]}  Qc2 {[%clk 0:02:05]} 18. Nc4 {[%clk 0:02:17]}  Qxe2 {[%clk 0:02:02]} 19. Bxe2 {[%clk 0:02:18]}  Bc5 {[%clk 0:01:58]} 20. Kf1 {[%clk 0:02:12]}  Rd7 {[%clk 0:01:58]} 21. Be3 {[%clk 0:01:58]}  Bxc4 {[%clk 0:01:36]} 22. Bxc5 {[%clk 0:01:57]}  Bxe2+ {[%clk 0:01:33]} 23. Kxe2 {[%clk 0:01:58]}  b6 {[%clk 0:01:33]} 24. Be3 {[%clk 0:01:58]}  Red8 {[%clk 0:01:31]} 25. Red1 {[%clk 0:01:58]}  Kf8 {[%clk 0:01:29]} 26. Rxd7 {[%clk 0:01:56]}  Rxd7 {[%clk 0:01:30]} 27. h4 {[%clk 0:01:55]}  h5 {[%clk 0:01:29]} 28. f3 {[%clk 0:01:55]}  Ke7 {[%clk 0:01:28]} 29. g4 {[%clk 0:01:54]}  hxg4 {[%clk 0:01:25]} 30. fxg4 {[%clk 0:01:55]}  Nd8 {[%clk 0:01:23]} 31. h5 {[%clk 0:01:51]}  Ne6 {[%clk 0:01:22]} 32. g5 {[%clk 0:01:51]}  Rd8 {[%clk 0:01:21]} 33. h6 {[%clk 0:01:51]}  gxh6 {[%clk 0:01:08]} 34. gxh6 {[%clk 0:01:52]}  Rh8 {[%clk 0:01:05]} 35. b4 {[%clk 0:01:51]}  axb4 {[%clk 0:01:04]} 36. cxb4 {[%clk 0:01:52]}  Nf4+ {[%clk 0:00:42]} 37. Bxf4 {[%clk 0:01:51]}  exf4 {[%clk 0:00:43]} 38. Rh1 {[%clk 0:01:51]}  c5 {[%clk 0:00:08]} 39. bxc5 {[%clk 0:01:45]}  bxc5 {[%clk 0:00:09]} 40. Kf3 {[%clk 0:01:42]}  c4 {[%clk 0:00:09]} 41. Kxf4 {[%clk 0:01:43]}  c3 {[%clk 0:00:09]} 42. Ke3 {[%clk 0:01:43]}  Kf6 {[%clk 0:00:05]} 43. h7 {[%clk 0:01:42]}  Kg7 {[%clk 0:00:05]} 44. a5 {[%clk 0:01:42]}  c2 {[%clk 0:00:04]} 45. Kd2 {[%clk 0:01:42]} 1-0


[Site "https://www.chess.com"]

[Event "Titled Tuesday Blitz August 17 2021"]
[White "Machidon, Cristi"]
[Black "Ivanisevic, Ivan"]
[WhiteFideId "13904590"]
[BlackFideId "912417"]
[WhiteElo "2312"]
[BlackElo "2499"]
[Result "1/2-1/2"]
[Round "08"]
[TimeControl "180+1"]
[Date "2021.08.17"]
[WhiteClock "0:00:14"]
[BlackClock "0:00:10"]

1. d4 {[%clk 0:03:00]}  d5 {[%clk 0:03:00]} 2. Nf3 {[%clk 0:03:01]}  Nf6 {[%clk 0:02:59]} 3. Bg5 {[%clk 0:03:01]}  Ne4 {[%clk 0:02:55]} 4. Bh4 {[%clk 0:03:01]}  c5 {[%clk 0:02:55]} 5. e3 {[%clk 0:03:01]}  Qb6 {[%clk 0:02:55]} 6. Nc3 {[%clk 0:03:00]}  cxd4 {[%clk 0:02:16]} 7. Qxd4 {[%clk 0:02:41]}  Qxd4 {[%clk 0:02:00]} 8. exd4 {[%clk 0:02:42]}  Nxc3 {[%clk 0:01:55]} 9. bxc3 {[%clk 0:02:43]}  e6 {[%clk 0:01:55]} 10. Ne5 {[%clk 0:02:31]}  Be7 {[%clk 0:01:52]} 11. Bb5+ {[%clk 0:02:28]}  Bd7 {[%clk 0:01:52]} 12. Nxd7 {[%clk 0:02:26]}  Nxd7 {[%clk 0:01:53]} 13. Bg3 {[%clk 0:02:26]}  a6 {[%clk 0:01:51]} 14. Bd3 {[%clk 0:02:26]}  Ba3 {[%clk 0:01:40]} 15. Rb1 {[%clk 0:02:13]}  b5 {[%clk 0:01:39]} 16. Rb3 {[%clk 0:02:12]}  Be7 {[%clk 0:01:39]} 17. a4 {[%clk 0:02:10]}  bxa4 {[%clk 0:01:40]} 18. Rb7 {[%clk 0:02:10]}  a3 {[%clk 0:00:59]} 19. Kd2 {[%clk 0:02:09]}  h5 {[%clk 0:00:59]} 20. h4 {[%clk 0:02:08]}  g5 {[%clk 0:00:58]} 21. hxg5 {[%clk 0:01:59]}  Bxg5+ {[%clk 0:00:59]} 22. f4 {[%clk 0:01:56]}  Be7 {[%clk 0:00:59]} 23. Ke2 {[%clk 0:01:45]}  Bd6 {[%clk 0:00:50]} 24. Kf3 {[%clk 0:01:40]}  Nf6 {[%clk 0:00:44]} 25. Bh4 {[%clk 0:01:32]}  Ng4 {[%clk 0:00:42]} 26. Re1 {[%clk 0:00:49]}  Kf8 {[%clk 0:00:41]} 27. Rd7 {[%clk 0:00:43]}  Bb8 {[%clk 0:00:31]} 28. Be7+ {[%clk 0:00:43]}  Kg7 {[%clk 0:00:28]} 29. Bxa3 {[%clk 0:00:42]}  Ra7 {[%clk 0:00:18]} 30. Rxa7 {[%clk 0:00:39]}  Bxa7 {[%clk 0:00:19]} 31. Bxa6 {[%clk 0:00:38]}  Nf6 {[%clk 0:00:19]} 32. Bd3 {[%clk 0:00:38]}  Rc8 {[%clk 0:00:18]} 33. Bb4 {[%clk 0:00:37]}  Bb6 {[%clk 0:00:17]} 34. Ra1 {[%clk 0:00:36]}  Bd8 {[%clk 0:00:17]} 35. g3 {[%clk 0:00:36]}  Rc7 {[%clk 0:00:16]} 36. Ra8 {[%clk 0:00:35]}  Be7 {[%clk 0:00:16]} 37. Ba5 {[%clk 0:00:34]}  Rc6 {[%clk 0:00:15]} 38. Bb5 {[%clk 0:00:33]}  Rd6 {[%clk 0:00:13]} 39. Bb4 {[%clk 0:00:32]}  Rd8 {[%clk 0:00:13]} 40. Rxd8 {[%clk 0:00:31]}  Bxd8 {[%clk 0:00:14]} 41. c4 {[%clk 0:00:31]}  dxc4 {[%clk 0:00:12]} 42. Bxc4 {[%clk 0:00:32]}  Bb6 {[%clk 0:00:12]} 43. c3 {[%clk 0:00:31]}  Nd5 {[%clk 0:00:12]} 44. Bxd5 {[%clk 0:00:30]}  exd5 {[%clk 0:00:13]} 45. Bd6 {[%clk 0:00:29]}  Kf6 {[%clk 0:00:13]} 46. g4 {[%clk 0:00:28]}  hxg4+ {[%clk 0:00:12]} 47. Kxg4 {[%clk 0:00:29]}  Ke6 {[%clk 0:00:13]} 48. Bb4 {[%clk 0:00:27]}  f5+ {[%clk 0:00:12]} 49. Kf3 {[%clk 0:00:28]}  Bd8 {[%clk 0:00:12]} 50. Ke3 {[%clk 0:00:25]}  Kd7 {[%clk 0:00:12]} 51. Ba3 {[%clk 0:00:20]}  Kc6 {[%clk 0:00:12]} 52. Kd3 {[%clk 0:00:19]}  Bc7 {[%clk 0:00:12]} 53. Bc1 {[%clk 0:00:18]}  Kb5 {[%clk 0:00:12]} 54. Bd2 {[%clk 0:00:17]}  Bd6 {[%clk 0:00:12]} 55. Be3 {[%clk 0:00:14]}  Bc7 {[%clk 0:00:11]} 56. Bd2 {[%clk 0:00:14]}  Bd6 {[%clk 0:00:11]} 57. Be3 {[%clk 0:00:14]}  Ba3 {[%clk 0:00:10]} 58. Bd2 {[%clk 0:00:14]}  Bd6 {[%clk 0:00:10]} 1/2-1/2


[Site "https://www.chess.com"]

[Event "Titled Tuesday Blitz August 17 2021"]
[White "Maevsky, Nikolay"]
[Black "Krishnakumar, Sriram"]
[WhiteFideId "4198220"]
[BlackFideId "30915856"]
[WhiteElo "2213"]
[BlackElo "2373"]
[Result "1-0"]
[Round "08"]
[TimeControl "180+1"]
[Date "2021.08.18"]
[WhiteClock "0:00:09"]
[BlackClock "0:00:07"]

1. d4 {[%clk 0:03:00]}  d5 {[%clk 0:02:58]} 2. Nf3 {[%clk 0:03:00]}  Nf6 {[%clk 0:02:57]} 3. e3 {[%clk 0:03:01]}  e6 {[%clk 0:02:56]} 4. Bd3 {[%clk 0:03:00]}  c5 {[%clk 0:02:56]} 5. b3 {[%clk 0:03:00]}  Nc6 {[%clk 0:02:56]} 6. Bb2 {[%clk 0:03:01]}  b6 {[%clk 0:02:56]} 7. Nbd2 {[%clk 0:03:01]}  Bb7 {[%clk 0:02:56]} 8. O-O {[%clk 0:03:00]}  Bd6 {[%clk 0:02:54]} 9. Ne5 {[%clk 0:03:00]}  Bxe5 {[%clk 0:02:53]} 10. dxe5 {[%clk 0:03:00]}  Nd7 {[%clk 0:02:53]} 11. f4 {[%clk 0:03:00]}  Qe7 {[%clk 0:02:53]} 12. c4 {[%clk 0:03:00]}  d4 {[%clk 0:02:52]} 13. exd4 {[%clk 0:02:50]}  Nxd4 {[%clk 0:02:53]} 14. Ne4 {[%clk 0:02:50]}  Nf5 {[%clk 0:02:45]} 15. Qe2 {[%clk 0:02:38]}  Bxe4 {[%clk 0:02:42]} 16. Bxe4 {[%clk 0:02:33]}  Rd8 {[%clk 0:02:41]} 17. Rad1 {[%clk 0:02:29]}  O-O {[%clk 0:02:38]} 18. g4 {[%clk 0:02:18]}  Nh4 {[%clk 0:02:36]} 19. Kh1 {[%clk 0:01:38]}  Ng6 {[%clk 0:02:25]} 20. Bb1 {[%clk 0:01:31]}  Nb8 {[%clk 0:02:17]} 21. f5 {[%clk 0:01:29]}  Rxd1 {[%clk 0:02:16]} 22. Rxd1 {[%clk 0:01:27]}  exf5 {[%clk 0:02:14]} 23. gxf5 {[%clk 0:01:27]}  Nf4 {[%clk 0:02:14]} 24. Qf3 {[%clk 0:01:21]}  Qh4 {[%clk 0:01:51]} 25. Rg1 {[%clk 0:01:12]}  g6 {[%clk 0:01:47]} 26. Bc1 {[%clk 0:00:53]}  Nh3 {[%clk 0:01:26]} 27. Rg3 {[%clk 0:00:47]}  Nd7 {[%clk 0:01:25]} 28. Kg2 {[%clk 0:00:21]}  Nxe5 {[%clk 0:01:20]} 29. Qe4 {[%clk 0:00:19]}  Qxe4+ {[%clk 0:00:18]} 30. Bxe4 {[%clk 0:00:20]}  Rd8 {[%clk 0:00:15]} 31. Kxh3 {[%clk 0:00:17]}  Rd1 {[%clk 0:00:16]} 32. Bf4 {[%clk 0:00:16]}  Nd7 {[%clk 0:00:13]} 33. Bd5 {[%clk 0:00:16]}  Nf6 {[%clk 0:00:12]} 34. fxg6 {[%clk 0:00:15]}  Nxd5 {[%clk 0:00:10]} 35. gxh7+ {[%clk 0:00:11]}  Kxh7 {[%clk 0:00:11]} 36. cxd5 {[%clk 0:00:12]}  Rxd5 {[%clk 0:00:12]} 37. Kg4 {[%clk 0:00:12]}  Kg6 {[%clk 0:00:11]} 38. Kf3+ {[%clk 0:00:11]}  Kf6 {[%clk 0:00:11]} 39. Rg2 {[%clk 0:00:11]}  Rd1 {[%clk 0:00:11]} 40. h4 {[%clk 0:00:11]}  Rh1 {[%clk 0:00:11]} 41. Rh2 {[%clk 0:00:11]}  Rf1+ {[%clk 0:00:12]} 42. Kg4 {[%clk 0:00:11]}  Kg6 {[%clk 0:00:12]} 43. h5+ {[%clk 0:00:11]}  Kh7 {[%clk 0:00:12]} 44. Kf5 {[%clk 0:00:09]}  Ra1 {[%clk 0:00:12]} 45. Rg2 {[%clk 0:00:09]}  Rh1 {[%clk 0:00:11]} 46. h6 {[%clk 0:00:09]}  Rf1 {[%clk 0:00:09]} 47. Rg7+ {[%clk 0:00:08]}  Kh8 {[%clk 0:00:09]} 48. Rxf7 {[%clk 0:00:08]}  a5 {[%clk 0:00:08]} 49. Kg6 {[%clk 0:00:08]}  Rg1+ {[%clk 0:00:06]} 50. Bg5 {[%clk 0:00:08]}  Kg8 {[%clk 0:00:07]} 51. h7+ {[%clk 0:00:08]}  Kh8 {[%clk 0:00:07]} 52. Rf8# {[%clk 0:00:09]} 1-0


[Site "https://www.chess.com"]